bitfinex/quotes_ETHUSD_20250216
["timestamp","ask_amount","ask_price","bid_price","bid_amount"]
[1739732833980,1.86811,2676.5,2676.0,7.47368]
[1739732834176,0.8042,2676.6,2676.0,3.73684]
[1739732834378,0.8042,2676.6,2676.1,7.87075124]
[1739732834679,2.67224,2676.6,2676.1,7.87075124]
[1739732835190,0.12722605,2676.5,2676.3,3.7365]
[1739732835687,0.12722605,2676.5,2676.2,3.73664]
[1739732835891,0.12722605,2676.5,2676.1,0.53718351]
[1739732836091,0.12722605,2676.5,2676.1,3.63420096]
[1739732836290,1.86794,2676.8,2676.2,3.73655]
[1739732836658,0.12757745,2676.7,2676.2,3.73655]
[1739732837065,1.86805,2676.6,2676.1,12.66356773]
[1739732837266,0.8042,2676.5,2676.1,12.66356773]
[1739732837487,0.8042,2676.5,2676.1,15.65412201]
[1739732838294,0.8042,2676.5,2676.2,3.73656]
[1739732838503,0.8042,2676.5,2676.2,3.73664]
[1739732838808,2.67217,2676.7,2676.2,3.73664]
[1739732839002,0.12253479,2676.4,2676.2,3.73664]
[1739732839206,0.8042,2676.7,2676.3,3.7365]
[1739732839368,0.8042,2676.7,2676.2,1.9390762]
[1739732839692,1.8681,2676.6,2676.1,15.65417201]
[1739732840275,0.8042,2676.7,2676.2,3.73663]
[1739732840871,1.86804,2676.6,2676.1,8.92683773]
[1739732841072,1.86804,2676.6,2676.1,5.33]
[1739732841400,1.86804,2676.6,2676.1,7.37096196]
[1739732841570,1.86804,2676.6,2676.2,3.73662]
[1739732842116,2.67217,2676.7,2676.1,5.54061893]
[1739732842311,2.67217,2676.7,2676.1,3.59683773]
[1739732842499,1.86812,2676.5,2676.1,3.59683773]
[1739732842868,0.12060744,2676.4,2676.1,3.59683773]
[1739732843065,1.86825,2676.3,2675.9,8.33]
[1739732843370,1.98881572,2676.3,2675.9,5.33]
[1739732843598,1.86825,2676.3,2675.9,5.33]
[1739732844088,0.8042,2676.4,2676.2,3.7366]
[1739732844296,1.86801,2676.7,2676.2,3.73658]
[1739732844612,1.86801,2676.7,2676.1,8.15968773]
[1739732844613,1.98890786,2676.6,2676.1,8.15968773]
[1739732844836,0.12085786,2676.6,2676.3,3.73643]
[1739732845129,2.6774,2677.1,2676.6,3.73601]
[1739732845326,0.8097,2677.1,2676.7,3.73585]
[1739732845632,0.8097,2677.1,2676.7,7.37004242]
[1739732845832,0.8097,2677.1,2676.7,11.10591242]
[1739732846029,0.8097,2677.1,2676.7,7.33268773]
[1739732846234,0.8097,2677.1,2676.7,4.10864676]
[1739732846526,0.2787929,2677.0,2676.7,7.84456678]
[1739732846689,0.2787929,2677.0,2676.7,7.8072121]
[1739732846894,0.2787929,2677.0,2676.7,4.0712921]
[1739732847195,0.2787929,2677.0,2676.7,3.59683773]
[1739732847510,0.2787929,2677.0,2676.7,7.37004247]
[1739732848300,0.8097,2677.1,2676.7,7.37004247]
[1739732848515,2.6769,2677.8,2677.1,3.73533]
[1739732848689,1.86731,2677.7,2677.1,3.77270943]
[1739732848888,1.86745,2677.5,2677.0,3.59683773]
[1739732849099,0.8097,2677.4,2677.0,3.59683773]
[1739732849402,0.8097,2677.4,2677.0,7.33227773]
[1739732849608,2.67719,2677.4,2677.0,3.59683773]
[1739732850014,0.8097,2677.4,2677.0,3.59683773]
[1739732850182,0.8097,2677.4,2677.0,7.33235773]
[1739732850903,0.27850919,2677.3,2677.0,7.33235773]
[1739732851101,0.27850919,2677.3,2677.0,4.13262663]
[1739732851309,0.27850919,2677.3,2677.0,3.59683773]
[1739732851681,0.27850919,2677.3,2677.0,7.33225773]
[1739732852021,0.27850919,2677.3,2677.2,3.73524]
[1739732852415,0.8097,2677.6,2677.3,3.73509]
[1739732852615,0.8097,2677.9,2677.6,3.73461]
[1739732852815,0.8097,2677.9,2677.5,3.7347]
[1739732853119,2.67684,2677.9,2677.3,11.06684773]
[1739732853314,0.27817034,2677.8,2677.3,11.06684773]
[1739732853522,0.27817034,2677.8,2677.4,3.73495]
[1739732853730,0.27817034,2677.8,2677.5,3.73481]
[1739732854621,0.8097,2677.9,2677.5,7.46956]
[1739732854830,0.8097,2677.9,2677.5,7.4695]
[1739732855140,0.8097,2677.9,2677.5,3.73474]
[1739732855795,0.8097,2678.2,2677.6,4.42303773]
[1739732855995,0.8097,2678.2,2677.8,3.73432]
[1739732856884,0.11823756,2678.1,2677.8,3.73432]
[1739732857295,0.8097,2678.7,2677.9,7.36842609]
[1739732857593,1.98512583,2678.6,2678.0,3.73412]
[1739732857794,1.86672,2678.5,2678.0,3.77145641]
[1739732858011,1.98495316,2678.5,2678.0,3.77145641]
[1739732858206,1.98495316,2678.5,2678.0,0.03733641]
[1739732858414,4.12965267,2678.5,2677.9,7.33108773]
[1739732858606,1.86679,2678.4,2677.9,8.9706415]
[1739732858807,0.27792951,2678.5,2677.9,8.9706415]
[1739732859010,6.99825951,2678.5,2678.0,3.77144641]
[1739732859312,3.47848208,2678.4,2678.0,4.63489379]
[1739732859513,0.11827208,2678.4,2678.0,4.67223019]
[1739732859838,0.39620159,2678.4,2678.0,4.67217019]
[1739732860049,0.39620159,2678.4,2678.0,4.63483379]
[1739732860211,0.39620159,2678.4,2678.2,11.06451773]
[1739732860394,0.27792951,2678.4,2678.3,4.91749177]
[1739732860751,0.27792951,2678.4,2678.3,1.18378177]
[1739732861043,3.36015,2678.5,2678.0,4.63490379]
[1739732861751,6.72,2678.6,2678.0,4.63490379]
[1739732861926,6.72,2678.6,2678.0,0.90078379]
[1739732861927,3.36021,2678.4,2678.0,0.90078379]
[1739732862138,0.7576,2678.3,2678.0,0.90078379]
[1739732862598,0.7576,2678.3,2678.0,4.63482379]
[1739732862800,0.7576,2678.3,2678.0,0.90078379]
[1739732863001,0.7576,2678.3,2678.0,4.63483379]
[1739732863206,0.7576,2678.3,2678.1,1.06146519]
[1739732864049,0.7576,2678.3,2678.1,4.79543519]
[1739732864359,0.7576,2678.3,2678.1,1.06146519]
[1739732865849,0.7576,2678.3,2678.1,4.79543519]
[1739732866153,6.72031,2678.5,2678.1,1.06146519]
[1739732866331,3.36015,2678.5,2678.0,9.06412]
[1739732866662,3.36042,2678.3,2678.0,5.33]
[1739732867164,0.7576,2678.2,2678.0,5.33]
[1739732867703,0.11855905,2678.1,2678.0,5.33]
[1739732869824,4.11809,2678.2,2678.0,5.33]
[1739732870161,3.47900472,2678.1,2678.0,5.33]
[1739732870366,0.11841472,2678.1,2678.0,5.33]
[1739732873662,3.36073,2678.0,2677.4,4.5082]
[1739732873809,3.36073,2678.0,2677.5,1.37110377]
[1739732874030,3.36103,2677.8,2677.5,1.37110377]
[1739732874566,3.36091,2677.9,2677.5,1.37110377]
[1739732874771,3.36097,2677.8,2677.5,1.37110377]
[1739732875782,3.36086,2677.9,2677.5,1.37110377]
[1739732875984,4.11807,2678.2,2677.7,3.73442]
[1739732876287,0.11417274,2677.8,2677.7,3.73442]
[1739732876590,0.27881053,2678.1,2677.8,3.73432]
[1739732876883,0.27881053,2678.1,2677.8,5.33]
[1739732877032,0.27881053,2678.1,2677.9,3.73426]
[1739732877237,0.27881053,2678.1,2677.9,1.361754]
[1739732877735,3.36035,2678.3,2677.9,1.361754]
[1739732877948,3.36052,2678.2,2677.9,1.361754]
[1739732878170,3.36035,2678.3,2677.9,1.361754]
[1739732878466,3.36047,2678.2,2677.9,1.361754]
[1739732878872,3.36035,2678.3,2677.9,1.361754]
[1739732879248,0.27905285,2678.2,2677.9,1.361754]
[1739732879555,0.27905285,2678.2,2678.1,3.73399]
[1739732879750,0.27905285,2678.2,2678.1,4.55279]
[1739732879969,0.27905285,2678.2,2678.1,0.8188]
[1739732880171,0.27905285,2678.2,2678.1,4.55279]
[1739732880474,0.27905285,2678.2,2678.1,4.59012531]
[1739732880671,0.27905285,2678.2,2678.1,6.38215884]
[1739732881391,0.27905285,2678.2,2678.1,24.44549048]
[1739732881532,0.27905285,2678.2,2678.1,24.40815884]
[1739732882083,6.71926,2678.9,2678.4,3.0]
[1739732882284,3.35994,2678.7,2678.3,3.59683773]
[1739732882489,3.35994,2678.7,2678.1,7.97816884]
[1739732882490,0.7583,2678.6,2678.1,7.97816884]
[1739732882710,3.36011,2678.5,2678.2,1.14935719]
[1739732882869,3.36011,2678.5,2678.1,3.0]
[1739732883200,3.36041,2678.3,2677.8,5.33]
[1739732883502,4.11889,2678.1,2677.8,5.33]
[1739732884005,4.11889,2678.1,2677.8,8.33]
[1739732884513,0.7583,2678.1,2677.8,8.33]
[1739732884668,0.7583,2678.1,2677.8,9.89613477]
[1739732884868,0.10622874,2678.0,2677.8,9.89613477]
[1739732885267,0.7583,2678.1,2677.8,9.89613477]
[1739732885469,4.1189,2678.1,2677.8,9.89613477]
[1739732885698,0.10622874,2678.0,2677.8,9.89613477]
[1739732888040,3.36085,2677.9,2677.5,0.8188]
[1739732888225,3.36085,2677.9,2677.4,7.33171773]
[1739732888517,3.46703707,2677.9,2677.4,7.33171773]
[1739732888870,3.46703707,2677.9,2677.4,7.33175773]
[1739732889472,0.10618707,2677.9,2677.5,3.73482]
[1739732889671,0.10618707,2677.9,2677.5,5.37448677]
[1739732890325,0.10618707,2677.9,2677.5,1.63966677]
[1739732890491,3.09361707,2677.9,2677.5,1.63966677]
[1739732891035,0.10618707,2677.9,2677.5,5.37440677]
[1739732891785,0.10618707,2677.9,2677.5,1.63966677]
[1739732891977,3.09363707,2677.9,2677.5,1.63966677]
[1739732893208,0.10618707,2677.9,2677.5,1.63966677]
[1739732893505,0.10618707,2677.9,2677.5,5.37447677]
[1739732893830,0.10618707,2677.9,2677.3,5.33]
[1739732894124,2.98776,2677.6,2677.3,5.33]
[1739732894352,2.98776,2677.6,2677.0,3.7355]
[1739732894629,3.74435,2677.5,2677.0,3.7355]
[1739732895491,3.74435,2677.5,2676.9,3.7785]
[1739732895672,2.98802,2677.4,2676.9,9.3429755]
[1739732895870,3.0899789,2677.4,2676.9,9.3429755]
[1739732896184,0.1019589,2677.4,2677.1,3.73527]
[1739732896402,0.1019589,2677.4,2677.0,3.7355]
[1739732896576,0.7564,2677.5,2677.0,3.7355]
[1739732896951,0.7564,2677.5,2677.0,5.02946932]
[1739732897093,3.74428,2677.5,2677.0,5.02946932]
[1739732897291,3.08969818,2677.4,2677.0,1.29396932]
[1739732897489,0.7564,2677.5,2677.0,1.29396932]
[1739732898047,0.7564,2677.5,2677.2,3.73523]
[1739732898207,0.7564,2677.5,2677.0,5.02947932]
[1739732898540,2.98805,2677.4,2677.0,1.29396932]
[1739732898724,2.98814,2677.3,2677.0,1.29396932]
[1739732899046,0.1017715,2677.2,2676.9,3.0]
[1739732899193,2.98814,2677.3,2676.9,3.0]
[1739732899527,3.0899915,2677.2,2676.9,3.0]
[1739732899696,2.98853,2676.9,2676.8,3.0]
[1739732899889,2.98853,2676.9,2676.5,8.379]
[1739732900095,2.98853,2676.9,2676.6,1.211527]
[1739732900289,2.98853,2676.9,2676.4,3.73627]
[1739732900491,0.7564,2677.1,2676.2,3.59683773]
[1739732900692,0.10143468,2676.8,2676.1,4.51585023]
[1739732900917,2.98879,2676.7,2676.1,4.51580023]
[1739732901104,3.0900291,2676.7,2676.1,4.47844145]
[1739732901305,0.7564,2676.5,2676.1,1.18537792]
[1739732901506,0.7564,2676.5,2676.1,4.92207792]
[1739732901825,0.10100454,2676.4,2676.1,4.92207792]
[1739732902029,0.10100454,2676.4,2676.1,1.18537792]
[1739732902226,3.74539,2676.5,2675.9,7.33379773]
[1739732902393,0.10096282,2676.3,2675.9,7.33379773]
[1739732902715,2.9892,2676.3,2675.9,3.0]
[1739732902916,0.10092109,2676.2,2675.9,3.0]
[1739732903134,0.10092109,2676.2,2675.9,6.73696]
[1739732903427,6.73446,2676.5,2675.9,8.049106]
[1739732903628,0.10066873,2676.1,2675.9,8.81220696]
[1739732903815,2.98914,2676.4,2675.9,8.81220696]
[1739732904017,0.10082292,2676.0,2675.9,8.81220696]
[1739732904329,2.98914,2676.4,2675.9,8.81220696]
[1739732904841,0.10094808,2676.3,2675.9,8.81220696]
[1739732905507,0.10094808,2676.3,2675.9,5.07524696]
[1739732905708,2.98914,2676.4,2675.9,5.07524696]
[1739732905920,2.98927,2676.3,2675.9,3.0]
[1739732906159,3.74547,2676.5,2675.9,3.0]
[1739732906333,0.10094094,2676.2,2675.9,6.73699]
[1739732906672,2.98911,2676.4,2675.9,6.73699]
[1739732906977,0.10083007,2676.1,2675.9,6.73699]
[1739732907107,2.98911,2676.4,2675.9,8.46819029]
[1739732907306,0.10078834,2676.0,2675.9,8.46819029]
[1739732907539,2.98911,2676.4,2675.9,8.46819029]
[1739732907719,0.7564,2676.5,2676.2,3.73653]
[1739732907919,0.10091351,2676.3,2676.2,3.73653]
[1739732908115,0.7564,2676.5,2676.1,3.73678]
[1739732908322,0.09670301,2676.3,2676.1,3.73678]
[1739732908633,0.7564,2676.5,2676.1,3.73678]
[1739732908838,0.09673044,2676.2,2676.1,3.73678]
[1739732909139,0.7564,2676.5,2676.1,5.3168278]
[1739732909336,0.7564,2676.5,2676.0,3.73684]
[1739732909543,0.09681387,2676.4,2676.0,3.73684]
[1739732910104,0.09681387,2676.4,2675.9,8.32803802]
[1739732910351,2.71232387,2676.4,2675.9,6.59683773]
[1739732910642,2.71232387,2676.4,2675.9,10.33387773]
[1739732911039,0.09681387,2676.4,2676.0,3.73691]
[1739732911420,2.61557,2676.3,2675.9,6.59683773]
[1739732911743,0.09674196,2676.2,2675.9,3.0]
[1739732912034,2.61557,2676.3,2675.9,3.0]
[1739732912359,0.09670024,2676.1,2675.9,6.73705]
[1739732912517,2.61557,2676.3,2675.9,3.0]
[1739732913139,0.0961191,2676.2,2675.9,3.0]
[1739732913314,0.0961191,2676.2,2676.0,4.943617]
[1739732913642,3.3718,2676.5,2676.0,4.943617]
[1739732913846,0.09607738,2676.1,2676.0,3.73691]
[1739732914039,3.3718,2676.5,2676.0,3.73691]
[1739732914355,2.61516,2676.7,2676.3,3.7365]
[1739732914528,2.61521,2676.7,2676.2,9.74913773]
[1739732914854,5.23045,2676.7,2676.2,6.1523]
[1739732915014,0.09627102,2676.6,2676.2,9.88892]
[1739732915210,0.09627102,2676.6,2676.3,0.03736047]
[1739732915430,0.09627102,2676.6,2676.2,11.25148]
[1739732915972,0.09627102,2676.6,2676.4,3.73627]
[1739732916127,0.09627102,2676.6,2676.3,3.77375047]
[1739732916457,0.09620627,2676.5,2676.3,3.73639]
[1739732916651,0.7862,2676.8,2676.3,3.73639]
[1739732916873,0.7862,2676.8,2676.3,3.77375047]
[1739732916874,0.0961876,2676.4,2676.3,3.77375047]
[1739732917019,3.40127,2676.8,2676.3,5.27628152]
[1739732917219,0.09284504,2676.7,2676.3,5.27628152]
[1739732917437,0.7862,2676.8,2676.4,3.73628]
[1739732917631,0.09280333,2676.6,2676.3,5.23892105]
[1739732917831,3.40126,2676.8,2676.3,5.27628153]
[1739732918046,0.09273858,2676.5,2676.3,5.27628153]
[1739732918257,3.40126,2676.8,2676.3,5.27628153]
[1739732918420,0.09269686,2676.4,2676.3,5.27628153]
[1739732918621,2.61516,2676.7,2676.2,9.88892]
[1739732918945,2.61543,2676.5,2676.2,5.33]
[1739732919246,3.49447296,2676.4,2676.2,5.33]
[1739732920640,0.87894296,2676.4,2676.2,5.33]
[1739732920993,2.61555,2676.3,2676.2,5.33]
[1739732921195,2.61555,2676.3,2675.9,3.0]
[1739732921486,2.70822819,2676.3,2675.9,3.0]
[1739732922394,0.09267819,2676.3,2675.9,3.0]
[1739732922547,2.61572,2676.2,2675.9,3.0]
[1739732922963,0.09260627,2676.1,2675.9,3.0]
[1739732925349,0.09260627,2676.1,2675.9,7.04078694]
[1739732925672,0.0925876,2676.0,2675.9,3.30373694]
[1739732925876,2.61556,2676.3,2675.9,3.0]
[1739732926049,0.0925876,2676.0,2675.9,3.0]
[1739732926250,5.23118,2676.3,2675.9,3.0]
[1739732926479,0.09252274,2676.0,2675.9,3.0]
[1739732926675,2.61556,2676.3,2675.9,3.0]
[1739732926880,0.09252274,2676.0,2675.9,3.0]
[1739732927084,5.23116,2676.3,2675.9,3.0]
[1739732927292,0.09252274,2676.0,2675.9,3.0]
[1739732927482,2.61556,2676.3,2675.9,3.0]
[1739732927667,0.09252274,2676.0,2675.9,3.0]
[1739732927866,5.23119,2676.3,2675.9,3.0]
[1739732928194,0.09096202,2676.0,2675.9,3.0]
[1739732928369,2.61566,2676.2,2675.9,3.0]
[1739732928563,0.09096202,2676.0,2675.9,3.0]
[1739732928768,3.40168,2676.4,2675.9,3.0]
[1739732929066,2.70669719,2676.3,2675.9,3.0]
[1739732930304,2.70669719,2676.3,2676.0,3.7369]
[1739732930305,0.09108719,2676.3,2676.0,3.7369]
[1739732930456,2.61567,2676.2,2675.9,3.0]
[1739732930657,2.70671547,2676.2,2675.9,3.0]
[1739732931588,0.09104547,2676.2,2675.9,3.0]
[1739732931998,2.61562,2676.3,2675.9,3.0]
[1739732932300,2.61564,2676.2,2675.9,3.0]
[1739732932473,2.70668547,2676.2,2675.9,3.0]
[1739732933059,2.61579,2676.1,2675.9,3.0]
[1739732933284,2.70679375,2676.1,2675.9,3.0]
[1739732933484,0.09100375,2676.1,2675.9,3.0]
[1739732933693,3.40172,2676.4,2675.9,3.0]
[1739732933901,0.09096202,2676.0,2675.9,3.0]
[1739732934190,2.61572,2676.2,2675.9,3.0]
[1739732934403,0.09096202,2676.0,2675.9,3.0]
[1739732934558,2.61572,2676.2,2675.9,3.0]
[1739732934758,0.09096202,2676.0,2675.9,3.0]
[1739732935004,2.61571,2676.2,2675.9,3.0]
[1739732935159,0.09096202,2676.0,2675.9,3.0]
[1739732935355,3.40168,2676.4,2675.9,4.206717]
[1739732935574,0.7862,2676.4,2675.9,8.726407]
[1739732935774,3.40169,2676.4,2675.9,8.726407]
[1739732935998,0.7862,2676.4,2675.9,8.726407]
[1739732936165,2.61556,2676.3,2675.9,7.51969]
[1739732937209,2.61556,2676.3,2675.9,3.7827]
[1739732937501,2.61569,2676.2,2675.9,3.7827]
[1739732938320,2.61556,2676.3,2675.9,7.51972]
[1739732939608,2.61556,2676.3,2675.9,3.7827]
[1739732940166,2.61556,2676.3,2675.9,7.51971]
[1739732940708,2.242,2676.2,2675.9,3.7827]
[1739732941007,2.242,2676.2,2675.9,3.0]
[1739732942191,2.32695894,2676.1,2675.9,3.0]
[1739732942809,2.32695894,2676.1,2675.7,6.1127]
[1739732943305,2.32695894,2676.1,2675.8,3.0]
[1739732943669,3.45974589,2676.0,2675.5,0.7827]
[1739732943885,2.24232,2675.8,2675.4,3.73765]
[1739732944267,0.08465554,2675.7,2675.4,3.73765]
[1739732944467,2.24232,2675.8,2675.4,3.73765]
[1739732944668,0.08465554,2675.7,2675.4,3.0]
[1739732944919,2.24232,2675.8,2675.4,3.0]
[1739732945124,0.08465554,2675.7,2675.4,3.0]
[1739732945279,2.24232,2675.8,2675.4,3.0]
[1739732945616,0.08465554,2675.7,2675.4,3.0]
[1739732945913,2.24232,2675.8,2675.4,3.0]
[1739732946115,0.08448121,2675.7,2675.4,3.0]
[1739732946289,0.08448121,2675.7,2675.3,9.85058]
[1739732946619,3.00291,2676.0,2675.3,6.1127]
[1739732946985,2.32686469,2675.9,2675.4,3.73762]
[1739732947191,2.32686469,2675.9,2675.4,3.73765]
[1739732947403,2.24232,2675.8,2675.4,3.73765]
[1739732948228,2.24232,2675.8,2675.3,9.85053]
[1739732948517,2.24232,2675.8,2675.4,3.73772]
[1739732950222,2.24232,2675.8,2675.3,12.80566]
[1739732950387,2.24232,2675.8,2675.3,9.06783]
[1739732950720,3.00291,2676.0,2675.5,3.73759]
[1739732950920,0.08394456,2675.7,2675.5,3.73759]
[1739732951225,2.24225,2675.9,2675.5,3.73759]
[1739732951380,0.8122,2676.5,2675.6,3.6342117]
[1739732951719,2.24187,2676.4,2675.9,3.73705]
[1739732951914,5.013313,2676.4,2675.9,3.73705]
[1739732952208,2.32611719,2676.3,2675.8,3.73712]
[1739732953032,0.8122,2676.1,2675.5,9.06753]
[1739732953193,2.24215,2676.0,2675.5,12.80505]
[1739732953519,0.08410102,2675.9,2675.6,3.73746]
[1739732953697,0.8122,2675.9,2675.5,5.33]
[1739732954018,3.05449,2675.9,2675.5,5.33]
[1739732954311,0.08403092,2675.8,2675.6,3.7374]
[1739732954516,0.8122,2675.9,2675.6,3.7374]
[1739732954711,0.08398917,2675.7,2675.6,3.7374]
[1739732954893,0.8122,2675.9,2675.5,5.33]
[1739732955093,0.08398917,2675.7,2675.5,9.0676]
[1739732955291,0.8122,2676.2,2675.6,0.80717393]
[1739732955494,2.24206,2676.1,2675.6,4.50717]
[1739732955706,2.32621615,2676.1,2675.6,4.50717]
[1739732956011,0.08415615,2676.1,2675.7,3.73731]
[1739732956214,0.08415615,2676.1,2675.7,3.73728]
[1739732956419,0.8122,2676.2,2675.8,3.73706]
[1739732956712,0.08415615,2676.1,2675.8,3.73706]
[1739732956893,0.8122,2676.2,2675.8,3.73706]
[1739732957105,0.8122,2676.6,2676.1,3.73671]
[1739732957310,0.8122,2676.6,2676.0,4.50671]
[1739732957311,2.24175,2676.5,2676.0,4.50671]
[1739732957632,3.05385,2676.6,2676.1,3.73675]
[1739732957838,0.8122,2676.6,2676.1,3.73675]
[1739732958033,0.8122,2677.2,2676.7,3.73589]
[1739732958233,0.8122,2677.2,2676.5,3.73612]
[1739732958394,0.8122,2677.2,2676.8,3.73576]
[1739732958599,0.8122,2677.2,2676.7,0.7698]
[1739732958801,3.05334,2677.2,2676.7,0.7698]
[1739732959426,3.05334,2677.2,2676.7,0.80715519]
[1739732959607,3.05334,2677.2,2676.7,0.7698]
[1739732959998,0.07922833,2677.1,2676.7,0.80715519]
[1739732960437,0.07922833,2677.1,2676.7,4.54308519]
[1739732960616,0.07922833,2677.1,2676.9,3.73566]
[1739732960856,0.07922833,2677.1,2676.8,3.73579]
[1739732961030,3.0532,2677.4,2676.8,3.73571]
[1739732961197,0.07916359,2677.0,2676.8,3.73568]
[1739732961532,5.29425,2677.4,2676.8,3.7358]
[1739732961533,0.07912188,2676.9,2676.8,3.7358]
[1739732961718,0.8122,2677.4,2676.9,3.73558]
[1739732961894,0.8122,2677.4,2676.8,8.80854976]
[1739732962099,0.8122,2677.4,2677.1,3.73529]
[1739732962301,3.05297,2677.7,2677.1,4.50509]
[1739732962637,2.24083,2677.6,2677.1,0.7698]
[1739732962817,0.8122,2677.7,2677.1,1.220324]
[1739732963005,0.8122,2677.7,2677.2,3.73517]
[1739732963441,3.05292,2677.7,2677.2,3.73516]
[1739732963741,0.8122,2677.7,2677.2,3.73516]
[1739732964098,0.7579,2677.9,2677.4,3.7349]
[1739732964299,2.24066,2677.8,2677.3,3.73498]
[1739732966137,2.24066,2677.8,2677.2,3.73516]
[1739732966940,2.24066,2677.8,2677.2,3.77250723]
[1739732967229,2.24066,2677.8,2677.3,3.73504]
[1739732967635,2.99846,2677.9,2677.4,3.73495]
[1739732968039,0.08019247,2677.8,2677.5,3.7348]
[1739732968256,0.08019247,2677.8,2677.4,3.73495]
[1739732970043,0.08019247,2677.8,2677.6,3.73465]
[1739732970211,0.08019247,2677.8,2677.6,4.51205]
[1739732970536,2.62494,2678.1,2677.6,5.34043747]
[1739732970735,0.07996525,2677.7,2677.6,4.51201]
[1739732970933,1.86707,2678.0,2677.4,4.51228]
[1739732971139,0.07996525,2677.7,2677.4,8.24716]
[1739732971340,1.86707,2678.0,2677.4,4.51228]
[1739732971633,0.07992357,2677.6,2677.4,4.51228]
[1739732971804,1.86707,2678.0,2677.5,3.73482]
[1739732972004,1.86714,2677.9,2677.5,3.73482]
[1739732972232,1.94718862,2677.9,2677.5,3.73482]
[1739732972714,1.94718862,2677.9,2677.4,4.54970471]
[1739732972928,1.94718862,2677.9,2677.4,4.51236]
[1739732973632,1.94718862,2677.9,2677.4,4.51229]
[1739732974840,1.94718862,2677.9,2677.4,8.24718]
[1739732975042,1.94718862,2677.9,2677.4,4.51229]
[1739732975340,1.8672,2677.8,2677.4,4.51229]
[1739732975881,0.08011493,2677.7,2677.4,8.24718]
[1739732976148,1.86713,2677.9,2677.4,9.69079469]
[1739732976434,1.86713,2677.9,2677.4,5.95590469]
[1739732976435,0.08007325,2677.6,2677.4,5.95590469]
[1739732976642,1.86713,2677.9,2677.4,5.95590469]
[1739732977017,0.08015661,2677.8,2677.4,5.95590469]
[1739732977839,2.62494,2678.1,2677.5,3.73475]
[1739732978041,1.86713,2677.9,2677.5,3.73475]
[1739732978246,1.86707,2678.0,2677.6,4.33395094]
[1739732978403,0.08015661,2677.8,2677.6,4.33395094]
[1739732978606,1.86707,2678.0,2677.6,4.33395094]
[1739732978806,0.08011493,2677.7,2677.6,4.33395094]
[1739732979006,1.86707,2678.0,2677.6,4.33395094]
[1739732979237,1.86707,2678.0,2677.6,0.59931094]
[1739732979421,0.08019828,2677.9,2677.6,0.59931094]
[1739732981212,1.86707,2678.0,2677.6,0.59931094]
[1739732982854,1.86709,2678.0,2677.6,0.59931094]
[1739732983010,1.86706,2678.0,2677.6,0.59931094]
[1739732983212,1.86715,2677.9,2677.6,0.59931094]
[1739732983426,1.86715,2677.9,2677.5,3.73477]
[1739732983828,1.86715,2677.9,2677.4,5.95588469]
[1739732984238,1.86715,2677.9,2677.5,3.73481]
[1739732984818,0.7617,2677.7,2677.3,5.33]
[1739732985349,0.7617,2677.7,2677.3,5.36734736]
[1739732985550,2.62884,2677.9,2677.4,3.73495]
[1739732985858,0.07961486,2677.6,2677.4,3.73495]
[1739732986013,2.62884,2677.9,2677.4,3.73495]
[1739732986210,2.62884,2677.9,2677.4,3.73487]
[1739732986416,0.07969823,2677.8,2677.4,3.73487]
[1739732986615,0.07969823,2677.8,2677.5,1.13298774]
[1739732986814,1.86707,2678.0,2677.5,5.65288774]
[1739732987259,0.07975076,2677.9,2677.5,9.38762774]
[1739732987433,1.86707,2678.0,2677.5,5.65288774]
[1739732987761,1.86707,2678.0,2677.5,9.38761774]
[1739732987961,1.86707,2678.0,2677.6,1.23876177]
[1739732988856,2.64539,2678.1,2677.6,4.97338177]
[1739732989158,1.86692,2678.3,2677.8,3.7344]
[1739732989367,0.07979244,2678.0,2677.8,3.7344]
[1739732989522,1.86692,2678.2,2677.6,4.97343177]
[1739732989722,0.0797873,2677.9,2677.6,4.97336177]
[1739732989923,1.867,2678.1,2677.6,5.01070384]
[1739732990244,1.867,2678.1,2677.6,4.97336177]
[1739732990449,3.7339,2678.2,2677.7,3.73453]
[1739732990656,1.86692,2678.2,2677.7,3.73453]
[1739732990897,1.94686065,2678.1,2677.7,3.73453]
[1739732991226,1.86699,2678.1,2677.7,3.73453]
[1739732991868,1.86699,2678.1,2677.6,1.23876177]
[1739732992165,1.86709,2678.0,2677.6,1.23876177]
[1739732993164,1.86709,2678.0,2677.6,4.97344177]
[1739732993565,1.86709,2678.0,2677.6,1.23876177]
[1739732993769,0.07974123,2677.9,2677.6,1.23876177]
[1739732994067,1.86709,2678.0,2677.6,4.97342177]
[1739732994250,1.86709,2678.0,2677.6,1.23876177]
[1739732995095,1.86709,2678.0,2677.6,4.97344177]
[1739732995587,3.73396,2678.2,2677.7,3.73454]
[1739732995760,0.07983049,2677.9,2677.7,3.73454]
[1739732996088,3.73396,2678.2,2677.7,3.73454]
[1739732996284,0.07991383,2678.1,2677.7,3.73454]
[1739732996790,1.86693,2678.2,2677.7,1.06635415]
[1739732996956,3.73392,2678.2,2677.7,3.73446]
[1739732997299,0.08000313,2678.1,2677.7,3.73446]
[1739732997454,1.86693,2678.2,2677.7,3.73446]
[1739732997853,0.08000313,2678.1,2677.7,3.73446]
[1739732998053,2.64523,2678.4,2677.9,3.73422]
[1739732998248,0.7784,2678.4,2678.0,0.03733905]
[1739732998491,0.08008647,2678.3,2678.1,3.73392]
[1739732998784,2.64834,2678.6,2678.0,0.03733905]
[1739732998785,1.86672,2678.5,2678.0,3.73412]
[1739732999087,0.08010165,2678.2,2678.0,3.73412]
[1739732999390,1.86672,2678.5,2678.0,3.73412]
[1739732999592,1.8668,2678.4,2678.0,3.73412]
[1739733000352,0.7817,2678.6,2678.1,0.03733602]
[1739733000566,0.08009019,2678.3,2678.1,0.03733602]
[1739733000918,1.86679,2678.4,2677.9,1.19715601]
[1739733001095,1.86679,2678.4,2678.0,0.4931556]
[1739733001491,1.86697,2678.2,2677.9,0.37715601]
[1739733001694,1.8671,2678.0,2677.7,5.33]